fUSD/lending_fUSD_20260423
["ID","MTS","AMOUNT","RATE_DAILY","PERIOD"]
[421019252,1776929432824,-1680.0,7.865e-05,2]
[421019253,1776929432834,-420.0,7.865e-05,2]
[421019254,1776929432845,-255.0,7.865e-05,2]
[421019255,1776929432856,-300.0,7.865e-05,2]
[421019256,1776929432865,-250.0,7.866e-05,2]
[421019257,1776929432876,-3023.2843443,7.932e-05,2]
[421019258,1776929432885,-3427.6200342,7.967e-05,2]
[421019259,1776929432894,-1367.8926148,7.975e-05,2]
[421019260,1776929432904,-794.03,8.072e-05,2]
[421019261,1776929432916,-1904.842887,8.143e-05,2]
[421019262,1776929432925,-4352.0964743,8.163e-05,2]
[421019263,1776929432935,-2299.3513993,8.172e-05,2]
[421019264,1776929432945,-4912.723694,8.178e-05,2]
[421019265,1776929432954,-44268.6285408,8.196e-05,2]
[421019266,1776929432965,-4397.7537398,8.2e-05,2]
[421019267,1776929432975,-500.0,8.219e-05,2]
[421019268,1776929432985,-500.0,8.219e-05,2]
[421019269,1776929432994,-280.0,8.219e-05,2]
[421019270,1776929433004,-181.87813958,8.219e-05,2]
[421019271,1776929433013,-162.380719,8.344e-05,2]
[421019272,1776929433023,-794.03,8.346e-05,2]
[421019273,1776929433032,-12404.5718666,8.585e-05,2]
[421019274,1776929433041,-3023.2843443,8.604e-05,2]
[421019275,1776929433050,-794.03,8.62e-05,2]
[421019276,1776929433060,-2351.0,8.652e-05,2]
[421019277,1776929433069,-3427.6200342,8.655e-05,2]
[421019278,1776929433079,-1367.8926148,8.668e-05,2]
[421019279,1776929433088,-168.3888056,8.892e-05,2]
[421019280,1776929433098,-794.03,8.894e-05,2]
[421019281,1776929433107,-1904.842887,8.919e-05,2]
[421019282,1776929433116,-4352.0964743,8.95e-05,2]
[421019283,1776929433126,-2299.3513993,8.963e-05,2]
[421019284,1776929433135,-44268.6285408,8.998e-05,2]
[421019285,1776929433144,-4397.7537398,9.004e-05,2]
[421019286,1776929433154,-794.0457838,9.168e-05,2]
[421019287,1776929433163,-151.47,9.353e-05,2]
[421019288,1776929433173,-174.61919141,9.44e-05,2]
[421019289,1776929433182,-2722.0,9.517e-05,2]
[421019290,1776929433191,-12404.5718666,9.582e-05,2]
[421019291,1776929433200,-160.0,9.655e-05,2]
[421019292,1776929433210,-181.08010149,9.988e-05,2]
[421019293,1776929433220,-208.0,9.989e-05,2]
[421019294,1776929433230,-208.0,9.989e-05,2]
[421019295,1776929433241,-208.0,9.989e-05,2]
[421019296,1776929433251,-208.0,9.989e-05,2]
[421019297,1776929433260,-208.0,9.989e-05,2]
[421019298,1776929433270,-208.0,9.989e-05,2]
[421019299,1776929433279,-208.0,9.989e-05,2]
[421019300,1776929433288,-208.0,9.989e-05,2]
[421019301,1776929433297,-208.0,9.989e-05,2]
[421019302,1776929433311,-238.60875247,0.0001,2]
[421019303,1776929433321,-538.261303,0.0001,2]
[421019304,1776929433330,-428.04810097,0.0001,2]
[421019305,1776929433340,-617.48744947,0.0001,2]
[421019306,1776929433350,-667.85917411,0.0001,2]
[421019307,1776929433359,-335.32930171,0.0001,2]
[421019308,1776929433369,-151.0,0.0001,2]
[421019309,1776929433380,-151.0,0.0001,2]
[421019310,1776929433390,-151.0,0.0001,2]
[421019311,1776929433400,-151.0,0.0001,2]
[421019312,1776929433410,-151.0,0.0001,2]
[421019313,1776929433420,-151.0,0.0001,2]
[421019314,1776929433430,-151.0,0.0001,2]
[421019315,1776929433440,-151.0,0.0001,2]
[421019316,1776929433451,-151.0,0.0001,2]
[421019317,1776929433461,-151.0,0.0001,2]
[421019318,1776929433470,-151.0,0.0001,2]
[421019319,1776929433480,-151.0,0.0001,2]
[421019320,1776929433490,-151.0,0.0001,2]
[421019321,1776929433500,-151.0,0.0001,2]
[421019322,1776929433510,-151.0,0.0001,2]
[421019323,1776929433520,-151.0,0.0001,2]
[421019324,1776929433530,-151.0,0.0001,2]
[421019325,1776929433540,-151.0,0.0001,2]
[421019326,1776929433549,-151.0,0.0001,2]
[421019327,1776929433559,-151.0,0.0001,2]
[421019328,1776929433569,-151.0,0.0001,2]
[421019329,1776929433580,-151.0,0.0001,2]
[421019330,1776929433590,-153.09599367,0.0001,2]
[421019331,1776929433601,-1000.0,0.000101,2]
[421019332,1776929433611,-155.0,0.0001015,2]
[421019333,1776929433621,-500.0,0.00010164,2]
[421019334,1776929433631,-150.0,0.00010426,2]
[421019335,1776929433641,-6143.74,0.00010475,2]
[421019336,1776929433651,-187.78006525,0.00010536,2]
[421019337,1776929433661,-1082.38255015,0.00010699,3]
[421019338,1776929433671,-1063.82653092,0.00010699,3]
[421019339,1776929433681,-1078.84688241,0.00010699,3]
[421019340,1776929433691,-161.88277015,0.000107,2]
[421019341,1776929433701,-1266.0,0.00010739,2]
[421019342,1776929433711,-1219.0,0.00010739,2]
[421019343,1776929433720,-927.0,0.00010739,2]
[421019344,1776929433730,-3530.0,0.00010754,2]
[421019345,1776929433741,-623.0,0.00010754,2]
[421019346,1776929433750,-1200.0,0.00010959,2]
[421019347,1776929433760,-1200.0,0.00010959,2]
[421019348,1776929433770,-1200.0,0.00010959,2]
[421019349,1776929433780,-1200.0,0.00010959,2]
[421019350,1776929433790,-1200.0,0.00010959,2]
[421019351,1776929433799,-1200.0,0.00010959,2]
[421019352,1776929433809,-1200.0,0.00010959,2]
[421019353,1776929433818,-1200.0,0.00010959,2]
[421019354,1776929433828,-194.72792766,0.00011084,2]
[421019355,1776929433838,-500.0,0.00011098,2]
[421019356,1776929433848,-380.73987752,0.00011099,2]
[421019357,1776929433857,-380.73987746,0.00011099,2]
[421019358,1776929433867,-380.73987746,0.00011099,2]
[421019359,1776929433876,-380.73987746,0.00011099,2]
[421019360,1776929433886,-25574.12960752,0.00011099,2]
[421019361,1776929433896,-25574.1296075,0.00011099,2]
[421019362,1776929433905,-25574.1296075,0.00011099,2]
[421019363,1776929433916,-25574.1296075,0.00011099,2]
[421019364,1776929433933,-5000.0,0.00011162,2]
[421019365,1776929433944,-25574.1296075,0.00011234,2]
[421019366,1776929433956,-380.73987746,0.00011297,2]
[421019367,1776929433966,-230.08311552,0.00011632,2]
[421019368,1776929433975,-5800.0,0.00011808,2]
[421019369,1776929433985,-159.13361964,0.000119,2]
[421019370,1776929433995,-159.13361964,0.000119,2]
[421019371,1776929434004,-200.0,0.00012,2]
[421019372,1776929434014,-500.0,0.00012206,2]
[421019373,1776929434024,-25574.1296075,0.00012255,2]
[421019374,1776929434035,-380.73987746,0.00012298,2]
[421019375,1776929434045,-500.0,0.00012301,2]
[421019376,1776929434056,-150.0,0.00012304,2]
[421019377,1776929434067,-150.0,0.00012304,2]
[421019378,1776929434076,-150.00000001,0.00012304,2]
[421019379,1776929434086,-150.0,0.00012304,2]
[421019380,1776929434096,-150.0,0.00012304,2]
[421019381,1776929434106,-299.2047187,0.00012304,2]
[421019382,1776929434116,-150.0,0.00012304,2]
[421019383,1776929434126,-150.0,0.00012304,2]
[421019384,1776929434136,-150.0,0.00012304,2]
[421019385,1776929434146,-150.0,0.00012304,2]
[421019386,1776929434156,-150.0,0.00012304,2]
[421019387,1776929434165,-280.0,0.00012309,2]
[421019388,1776929434175,-161.52,0.00012328,2]
[421019389,1776929434185,-150.0,0.0001235,2]
[421019390,1776929434194,-150.0,0.00012395,2]
[421019391,1776929434204,-150.0,0.00012441,2]
[421019392,1776929434214,-150.0,0.00012456,2]
[421019393,1776929434224,-800.0,0.0001248,2]
[421019394,1776929434234,-2600.0,0.0001248,2]
[421019395,1776929434245,-150.0,0.00012486,2]
[421019396,1776929434255,-150.0,0.00012499,2]
[421019397,1776929434265,-150.0,0.00012499,2]
[421019398,1776929434275,-150.0,0.00012499,2]
[421019399,1776929434284,-150.0,0.00012532,2]
[421019400,1776929434294,-150.0,0.00012532,2]
[421019401,1776929434304,-150.0,0.00012578,2]
[421019402,1776929434314,-150.0,0.00012608,2]
[421019403,1776929434325,-150.0,0.00012623,2]
[421019404,1776929434335,-150.0,0.00012646,2]
[421019405,1776929434344,-150.0,0.00012669,2]
[421019406,1776929434354,-150.0,0.00012695,2]
[421019407,1776929434364,-150.0,0.00012695,2]
[421019408,1776929434374,-150.0,0.00012695,2]
[421019409,1776929434384,-150.0,0.00012714,2]
[421019410,1776929434398,-150.0,0.0001276,2]
[421019411,1776929434408,-150.0,0.0001276,2]
[421019412,1776929434418,-150.0,0.0001276,2]
[421019413,1776929434428,-150.0,0.00012805,2]
[421019414,1776929434438,-797.45704531,0.00012824,2]
[421019415,1776929434449,-150.0,0.00012851,2]
[421019416,1776929434459,-150.0,0.0001289,2]
[421019417,1776929434470,-150.0,0.0001289,2]
[421019418,1776929434479,-150.0,0.0001289,2]
[421019419,1776929434489,-150.0,0.00012897,2]
[421019420,1776929434499,-150.0,0.00012912,2]
[421019421,1776929434508,-1330.8357715,0.00012933,2]
[421019422,1776929434518,-150.0,0.00012942,2]
[421019423,1776929434528,-5800.0,0.0001295,2]
[421019424,1776929434538,-159.13361964,0.00012951,2]
[421019425,1776929434548,-5800.0,0.00012959,2]
[421019426,1776929434558,-5800.0,0.00012967,2]
[421019427,1776929434569,-150.0,0.00012988,2]
[421019428,1776929434579,-150.0,0.00012988,2]
[421019429,1776929434589,-150.0,0.00012988,2]
[421019430,1776929434599,-500.0,0.00013014,2]
[421019431,1776929434609,-500.0,0.00013014,2]
[421019432,1776929434620,-200.0,0.00013015,2]
[421019433,1776929434630,-1307.0,0.00013015,5]
[421019434,1776929434640,-87051.19367367,0.00013015,2]
[421019435,1776929434659,-55397.88384424,0.00013015,2]
[421019436,1776929434671,-29558.81788472,0.00013015,2]
[421019437,1776929434696,-280.0,0.00013015,2]
[421019438,1776929434711,-530.12669042,0.00013015,2]
[421019442,1776929438088,-499.40535172,0.00013015,2]
[421019443,1776929438113,-76165.53357054,0.00013015,2]
[421019444,1776929438140,-48993.48432967,0.00013015,2]
[421019445,1776929438165,-829.67010334,0.00013015,2]
[421019446,1776929438199,-115789.53401899,0.00013015,2]
[421019447,1776929438267,-5236.93975279,0.00013015,2]
[421019470,1776929443747,-6494.21443724,0.00013015,2]
[421019471,1776929443780,-700.0,0.00013015,2]
[421019472,1776929444022,-688.8580236,0.00013015,2]
[421019473,1776929444048,-1149.11159905,0.00013015,2]
[421019474,1776929444059,-508.28615974,0.00013015,2]
[421019475,1776929445256,405.94998209,7.25e-05,2]
[421019490,1776929445813,-1048.0,8.34e-05,2]
[421019491,1776929445823,-1048.0,0.0001134,2]
[421019492,1776929445832,-362.7765183,0.00013009,2]
[421019493,1776929445842,-818.02572944,0.00013015,2]
[421019494,1776929445986,-73816.06283083,0.00013015,2]
[421019495,1776929445996,-150.0,0.00013033,2]
[421019496,1776929446005,-155.0,0.0001305,2]
[421019497,1776929446015,-150.0,0.00013064,2]
[421019498,1776929446024,-500.0,0.00013073,2]
[421019499,1776929446034,-500.0,0.00013073,2]
[421019500,1776929446043,-500.0,0.00013073,2]
[421019501,1776929446052,-234.13117685,0.00013073,2]
[421019502,1776929446062,-160.14456496,0.00013073,2]
[421019503,1776929446071,-160.32577858,0.00013073,2]
[421019504,1776929446081,-500.0,0.00013073,2]
[421019505,1776929446090,-297.24673784,0.00013073,2]
[421019506,1776929446099,-500.0,0.00013073,2]
[421019507,1776929446109,-500.0,0.00013073,2]
[421019508,1776929446118,-150.0,0.00013079,2]
[421019509,1776929446127,-150.0,0.00013085,2]
[421019510,1776929446136,-150.0,0.00013085,2]
[421019512,1776929446146,-150.0,0.00013085,2]
[421019513,1776929446155,-151.0,0.00013103,2]
[421019515,1776929446165,-150.0,0.00013124,2]
[421019517,1776929446174,-150.0,0.0001317,2]
[421019519,1776929446184,-150.0,0.00013216,2]
[421019521,1776929446193,-150.0,0.00013216,2]
[421019522,1776929446203,-150.0,0.00013216,2]
[421019523,1776929446213,-150.0,0.00013261,2]
[421019524,1776929446222,-1210.45660124,0.00013266,2]
[421019525,1776929446232,-25574.1296075,0.00013276,2]
[421019527,1776929446240,-150.0,0.00013281,2]
[421019529,1776929446250,-150.0,0.00013281,2]
[421019531,1776929446259,-150.0,0.00013281,2]
[421019533,1776929446268,-380.73987746,0.00013298,2]
[421019535,1776929446277,-150.0,0.00013307,2]
[421019537,1776929446286,-161.52,0.00013328,2]
[421019539,1776929446295,-150.0,0.00013329,2]
[421019541,1776929446305,-150.0,0.00013352,2]
[421019543,1776929446313,-150.0,0.00013367,2]
[421019545,1776929446322,-150.0,0.00013398,2]
[421019547,1776929446331,-791.02353,0.000134,2]
[421019549,1776929446341,-5014.57142743,0.00013424,2]
[421019551,1776929446350,-150.0,0.00013443,2]
[421019553,1776929446359,-150.0,0.00013443,2]
[421019555,1776929446368,-500.0,0.00013452,2]
[421019557,1776929446377,-150.0,0.00013476,2]
[421019559,1776929446386,-150.0,0.00013476,2]
[421019561,1776929446395,-150.0,0.00013476,2]
[421019563,1776929446404,-150.0,0.00013489,2]
[421019565,1776929446414,-150.0,0.00013519,2]
[421019567,1776929446423,-150.0,0.00013535,2]
[421019569,1776929446433,-150.0,0.0001358,2]
[421019570,1776929446442,-414.39309495,0.00013598,2]
[421019572,1776929446451,-500.0,0.00013621,2]
[421019574,1776929446460,-1000.0,0.00013621,2]
[421019576,1776929446469,-150.0,0.00013626,2]
[421019578,1776929446479,-288.70337602,0.00013671,2]
[421019580,1776929446488,-185.96715015,0.00013671,2]
[421019582,1776929446498,-158.91744416,0.00013671,2]
[421019584,1776929446507,-177.31547693,0.00013671,2]
[421019586,1776929446517,-274.20071681,0.00013671,2]
[421019629,1776929446911,-228.14091572,0.00013671,2]
[421019632,1776929446932,-159.99460691,0.00013671,2]
[421019634,1776929446942,-152.44980429,0.00013671,2]
[421019636,1776929446951,-150.30968059,0.00013671,2]
[421019638,1776929446960,-500.0,0.00013697,2]
[421019639,1776929446969,-1037.81,0.00013698,2]
[421019641,1776929446978,-1037.81,0.00013698,2]
[421019643,1776929446988,-1037.81,0.00013698,2]
[421019645,1776929446997,-500.0,0.00013698,2]
[421019647,1776929447006,-500.0,0.00013698,2]
[421019649,1776929447015,-500.0,0.00013698,2]
[421019651,1776929447023,-1312.13,0.00013698,2]
[421019653,1776929447032,-1312.13,0.00013698,2]
[421019655,1776929447041,-1312.13,0.00013698,2]
[421019657,1776929447050,-1004.0,0.00013698,2]
[421019659,1776929447060,-1004.0,0.00013698,2]
[421019661,1776929447069,-1004.0,0.00013698,2]
[421019663,1776929447078,-500.0,0.00013698,2]
[421019665,1776929447086,-500.0,0.00013698,2]
[421019667,1776929447095,-500.0,0.00013698,2]
[421019669,1776929447105,-500.0,0.00013698,2]
[421019671,1776929447118,-500.0,0.00013698,2]
[421019673,1776929447128,-500.0,0.00013698,2]
[421019675,1776929447137,-500.0,0.00013698,2]
[421019677,1776929447146,-500.0,0.00013698,2]
[421019679,1776929447155,-500.0,0.00013698,2]
[421019681,1776929447165,-500.0,0.00013698,2]
[421019683,1776929447174,-500.0,0.00013698,2]
[421019685,1776929447182,-500.0,0.00013698,2]
[421019687,1776929447193,-1727.09,0.00013698,2]
[421019689,1776929447202,-1727.09,0.00013698,2]
[421019691,1776929447211,-1727.09,0.00013698,2]
[421019693,1776929447220,-500.0,0.00013698,2]
[421019695,1776929447230,-500.0,0.00013698,2]
[421019697,1776929447239,-500.0,0.00013698,2]
[421019699,1776929447248,-813.8,0.00013698,2]
[421019701,1776929447257,-813.8,0.00013698,2]
[421019703,1776929447266,-813.8,0.00013698,2]
[421019705,1776929447275,-500.0,0.00013698,2]
[421019707,1776929447284,-500.0,0.00013698,2]
[421019709,1776929447293,-500.0,0.00013698,2]
[421019711,1776929447302,-500.0,0.00013698,2]
[421019713,1776929447311,-500.0,0.00013698,2]
[421019715,1776929447320,-500.0,0.00013698,2]
[421019717,1776929447329,-968.61,0.00013698,2]
[421019719,1776929447338,-968.61,0.00013698,2]
[421019721,1776929447348,-968.61,0.00013698,2]
[421019723,1776929447358,-500.0,0.00013698,2]
[421019725,1776929447367,-500.0,0.00013698,2]
[421019727,1776929447376,-500.0,0.00013698,2]
[421019729,1776929447386,-500.0,0.00013698,2]
[421019731,1776929447395,-500.0,0.00013698,2]
[421019733,1776929447404,-500.0,0.00013698,2]
[421019735,1776929447413,-3360.34,0.00013698,2]
[421019737,1776929447423,-3360.34,0.00013698,2]
[421019739,1776929447432,-3360.34,0.00013698,2]
[421019741,1776929447441,-773.51,0.00013698,2]
[421019743,1776929447450,-773.51,0.00013698,2]
[421019745,1776929447459,-773.51,0.00013698,2]
[421019747,1776929447469,-500.0,0.00013698,2]
[421019749,1776929447479,-500.0,0.00013698,2]
[421019751,1776929447488,-500.0,0.00013698,2]
[421019753,1776929447496,-2769.08,0.00013698,2]
[421019755,1776929447505,-2769.08,0.00013698,2]
[421019757,1776929447515,-2769.08,0.00013698,2]
[421019759,1776929447525,-4334.06,0.00013698,2]
[421019761,1776929447534,-4334.06,0.00013698,2]
[421019763,1776929447544,-4334.06,0.00013698,2]
[421019765,1776929447553,-1334.43,0.00013698,2]
[421019767,1776929447562,-1334.43,0.00013698,2]
[421019769,1776929447571,-1334.43,0.00013698,2]
[421019771,1776929447581,-1334.43,0.00013698,2]
[421019773,1776929447590,-1334.43,0.00013698,2]
[421019775,1776929447599,-1334.43,0.00013698,2]
[421019777,1776929447608,-500.0,0.00013698,2]
[421019779,1776929447617,-500.0,0.00013698,2]
[421019781,1776929447627,-500.0,0.00013698,2]
[421019783,1776929447636,-500.0,0.00013698,2]
[421019785,1776929447646,-500.0,0.00013698,2]
[421019787,1776929447655,-500.0,0.00013698,2]
[421019789,1776929447664,-500.0,0.00013698,2]
[421019791,1776929447673,-500.0,0.00013698,2]
[421019793,1776929447682,-500.0,0.00013698,2]
[421019795,1776929447691,-500.0,0.00013698,2]
[421019797,1776929447700,-180.0,0.00013699,2]
[421019799,1776929447710,-291.36,0.00013699,2]
[421019801,1776929447720,-454.9,0.00013699,2]
[421019803,1776929447729,-379.09,0.00013699,2]
[421019804,1776929447738,-315.91,0.00013699,2]
[421019806,1776929447747,-263.25,0.00013699,2]
[421019808,1776929447757,-219.38,0.00013699,2]
[421019810,1776929447767,-182.82,0.00013699,2]
[421019812,1776929447776,-152.35,0.00013699,2]
[421019814,1776929447785,-761.75,0.00013699,2]
[421019816,1776929447794,-317.92753624,0.00013699,2]
[421019818,1776929447803,-150.0,0.00013699,30]
[421019820,1776929447813,-160.0,0.00013699,30]
[421019822,1776929447822,-227.0,0.00013699,2]
[421019824,1776929447831,-227.0,0.00013699,2]
[421019826,1776929447840,-304.97730224,0.00013699,2]
[421019828,1776929447849,-1000.0,0.00013699,2]
[421019830,1776929447858,-150.0,0.000137,2]
[421019832,1776929447867,-150.0,0.000137,2]
[421019834,1776929447877,-150.0,0.000137,2]
[421019836,1776929447886,-219.70129782,0.000137,2]
[421019838,1776929447895,-162.81,0.000137,2]
[421019840,1776929447904,-3506.98,0.000137,2]
[421019842,1776929447913,-1266.0,0.00013739,2]
[421019844,1776929447922,-1219.0,0.00013739,2]
[421019846,1776929447931,-927.0,0.00013739,2]
[421019848,1776929447940,-3530.0,0.00013754,2]
[421019850,1776929447949,-623.0,0.00013754,2]
[421019852,1776929447958,-350.0,0.00013762,2]
[421019854,1776929447967,-1567.98,0.00013844,2]
[421019856,1776929447977,-800.0,0.0001385,2]
[421019858,1776929447986,-2600.0,0.0001385,2]
[421019860,1776929447995,-350.0,0.00013851,4]
[421019862,1776929448004,-376.74,0.00013876,2]
[421019864,1776929448013,-244.98,0.00013876,2]
[421019866,1776929448022,-350.0,0.00013887,2]
[421019868,1776929448030,-1082.38255014,0.00013989,5]
[421019870,1776929448040,-1078.84688241,0.00013989,5]
[421019872,1776929448049,-500.0,0.00013989,2]
[421019874,1776929448058,-1334.43,0.00013989,2]
[421019876,1776929448067,-60000.0,0.0001399,2]
[421019878,1776929448076,-200.0,0.00014,2]
[421019880,1776929448085,-610.39471164,0.00014,2]
[421019882,1776929448095,-2201.35441604,0.000141,2]
[421019885,1776929448104,-2000.0,0.000141,2]
[421019887,1776929448114,-868.76130514,0.0001411,2]
[421019889,1776929448123,-174.41,0.00014168,2]
[421019890,1776929448133,-500.61805337,0.00014168,2]
[421019892,1776929448143,-2000.0,0.000142,2]
[421019894,1776929448152,-168.66,0.00014272,2]
[421019896,1776929448161,-168.66,0.00014272,2]
[421019899,1776929448172,-500.0,0.00014282,2]
[421019900,1776929448182,-200.0,0.00014282,2]
[421019902,1776929448191,-500.0,0.00014282,2]
[421019905,1776929448201,-200.0,0.00014282,2]
[421019907,1776929448210,-500.0,0.00014283,2]
[421019909,1776929448220,-500.0,0.00014283,2]
[421019911,1776929448229,-500.0,0.00014283,2]
[421019913,1776929448239,-500.0,0.00014283,2]
[421019915,1776929448248,-500.0,0.00014283,2]
[421019917,1776929448257,-200.0,0.00014283,2]
[421019919,1776929448267,-200.0,0.00014283,2]
[421019921,1776929448276,-25574.1296075,0.00014296,2]
[421019923,1776929448286,-380.73987746,0.00014299,2]
[421019925,1776929448295,-2000.0,0.000143,2]
[421019927,1776929448304,-161.52,0.00014327,2]
[421019929,1776929448313,-1048.0,0.0001434,2]
[421019931,1776929448322,-350.0,0.0001435,2]
[421019932,1776929448331,-357.11528895,0.00014389,2]
[421019934,1776929448342,-1727.09,0.00014389,2]
[421019936,1776929448353,-2769.08,0.00014389,2]
[421019938,1776929448363,-4334.06,0.00014389,2]
[421019940,1776929448372,-161.0,0.0001439,2]
[421019943,1776929448381,-161.0,0.0001439,2]
[421019945,1776929448391,-161.0,0.0001439,2]
[421019946,1776929448400,-564.98020813,0.000144,2]
[421019948,1776929448409,-2000.0,0.000144,2]
[421019950,1776929448419,-159.13361964,0.00014426,2]
[421019952,1776929448428,-2000.0,0.000145,2]
[421019954,1776929448438,-2000.0,0.000145,2]
[421019956,1776929448449,-150.0,0.0001456,21]
[421019958,1776929448459,-150.0,0.0001456,21]
[421019960,1776929448468,-267.79541215,0.0001456,21]
[421019962,1776929448478,-350.0,0.00014565,5]
[421019964,1776929448487,-315.12000001,0.00014571,7]
[421019966,1776929448496,-2200.40339058,0.000146,2]
[421019968,1776929448505,-2000.0,0.000146,2]
[421019971,1776929448515,-271.3,0.00014643,2]
[421019973,1776929448525,-3506.98,0.000147,2]
[421019975,1776929448534,-1959.27192852,0.000147,2]
[421019978,1776929448595,-40.72807148,0.000147,2]
[421019980,1776929448605,-350.0,0.00014773,2]
[421019982,1776929448614,-400.0,0.0001479,2]
[421019984,1776929448625,-400.0,0.0001479,2]
[421019985,1776929448635,-400.0,0.0001479,2]
[421019986,1776929448645,-819.0,0.000148,5]
[421019987,1776929448656,-3434.0,0.000148,2]
[421019988,1776929448665,-2000.0,0.000148,2]
[421019989,1776929448675,-500.0,0.000148,4]
[421019990,1776929448685,-1000.0,0.00014848,2]
[421019991,1776929448694,-2200.93685,0.0001485,2]
[421019992,1776929448704,-500.0,0.00014898,2]
[421019993,1776929448714,-500.0,0.00014898,2]
[421019994,1776929448723,-1037.81,0.00014899,2]
[421019995,1776929448733,-500.0,0.00014899,2]
[421019996,1776929448742,-1312.13,0.00014899,2]
[421019997,1776929448751,-1004.0,0.00014899,2]
[421019998,1776929448760,-500.0,0.00014899,2]
[421019999,1776929448769,-500.0,0.00014899,2]
[421020000,1776929448779,-581.22989367,0.00014899,2]
[421020001,1776929448788,-1727.09,0.00014899,2]
[421020002,1776929448797,-189.55136157,0.00014899,2]
[421020003,1776929448807,-813.8,0.00014899,2]
[421020004,1776929448816,-500.0,0.00014899,2]
[421020005,1776929448825,-500.0,0.00014899,2]
[421020006,1776929448834,-968.61,0.00014899,2]
[421020007,1776929448843,-500.0,0.00014899,2]
[421020008,1776929448852,-500.0,0.00014899,2]
[421020009,1776929448862,-1000.0,0.00014899,2]
[421020010,1776929448873,-3360.34,0.00014899,2]
[421020011,1776929448882,-1000.0,0.00014899,2]
[421020012,1776929448891,-1000.0,0.00014899,2]
[421020013,1776929448900,-1000.0,0.00014899,2]
[421020014,1776929448909,-1000.0,0.00014899,2]
[421020015,1776929448918,-1000.0,0.00014899,2]
[421020016,1776929448927,-1000.0,0.00014899,2]
[421020017,1776929448936,-1000.0,0.00014899,2]
[421020018,1776929448946,-1000.0,0.00014899,2]
[421020019,1776929448955,-1000.0,0.00014899,2]
[421020020,1776929448964,-1000.0,0.00014899,2]
[421020021,1776929448974,-1000.0,0.00014899,2]
[421020022,1776929448983,-1000.0,0.00014899,2]
[421020023,1776929448992,-1000.0,0.00014899,2]
[421020024,1776929449002,-1000.0,0.00014899,2]
[421020025,1776929449011,-1000.0,0.00014899,2]
[421020026,1776929449021,-1000.0,0.00014899,2]
[421020027,1776929449030,-1000.0,0.00014899,2]
[421020028,1776929449040,-1000.0,0.00014899,2]
[421020029,1776929449049,-1000.0,0.00014899,2]
[421020030,1776929449058,-1000.0,0.00014899,2]
[421020031,1776929449067,-1000.0,0.00014899,2]
[421020032,1776929449076,-1000.0,0.00014899,2]
[421020033,1776929449086,-1000.0,0.00014899,2]
[421020034,1776929449095,-1000.0,0.00014899,2]
[421020035,1776929449104,-810.43848707,0.00014899,2]
[421020036,1776929449114,-773.51,0.00014899,2]
[421020037,1776929449123,-500.0,0.00014899,2]
[421020038,1776929449133,-2769.08,0.00014899,2]
[421020039,1776929449143,-500.0,0.00014899,2]
[421020040,1776929449153,-4334.06,0.00014899,2]
[421020041,1776929449163,-1334.43,0.00014899,2]
[421020042,1776929449173,-500.0,0.00014899,2]
[421020043,1776929449182,-500.0,0.00014899,2]
[421020044,1776929449192,-500.0,0.000149,3]
[421020045,1776929449202,-500.0,0.000149,3]